fUST/lending_fUST_20250103
["ID","MTS","AMOUNT","RATE_DAILY","PERIOD"]
[347473342,1735847442821,-1255.32,0.00019452,3]
[347473343,1735847442830,-500.0,0.00019452,3]
[347473344,1735847442840,-500.0,0.00019452,3]
[347473345,1735847442849,-500.0,0.00019452,3]
[347473347,1735847442859,-420.0,0.0001962,2]
[347473349,1735847442868,-11665.95116444,0.00019621,2]
[347473351,1735847442879,-1000.0,0.00019721,2]
[347473354,1735847442888,-820.11,0.00019726,3]
[347473356,1735847442898,-500.0,0.00019726,3]
[347473358,1735847442908,-750.06,0.00019726,3]
[347473360,1735847442918,-500.0,0.00019726,3]
[347473362,1735847442927,-500.0,0.00019726,3]
[347473364,1735847442936,-500.0,0.00019726,3]
[347473366,1735847442945,-500.0,0.00019726,3]
[347473368,1735847442954,-500.0,0.00019726,3]
[347473380,1735847443059,-500.0,0.00019726,3]
[347473382,1735847443071,-667.64,0.00019726,3]
[347473384,1735847443080,-197.55891307,0.00019726,3]
[347473386,1735847443090,-500.0,0.00019726,3]
[347473388,1735847443099,-500.0,0.00019726,3]
[347473390,1735847443109,-554.4,0.00019726,3]
[347473392,1735847443118,-463.40799175,0.00019726,3]
[347473394,1735847443127,-500.0,0.00019726,3]
[347473396,1735847443137,-500.0,0.00019726,3]
[347473398,1735847443146,-500.0,0.00019726,3]
[347473400,1735847443155,-500.0,0.00019726,3]
[347473402,1735847443164,-500.0,0.00019726,3]
[347473404,1735847443173,-500.0,0.00019726,3]
[347473405,1735847443183,-500.0,0.00019726,3]
[347473406,1735847443193,-14569.12,0.00019726,3]
[347473407,1735847443202,-500.0,0.00019726,3]
[347473408,1735847443211,-500.0,0.00019726,3]
[347473409,1735847443221,-500.0,0.00019726,3]
[347473410,1735847443230,-500.0,0.00019726,3]
[347473411,1735847443239,-633.57463747,0.00019726,3]
[347473412,1735847443249,-500.0,0.00019726,3]
[347473413,1735847443258,-3048.23,0.00019726,3]
[347473414,1735847443268,-561.7,0.00019726,3]
[347473415,1735847443277,-500.0,0.00019726,3]
[347473416,1735847443286,-500.0,0.00019726,3]
[347473417,1735847443296,-3343.71,0.00019726,3]
[347473418,1735847443305,-422.85933435,0.00019726,3]
[347473419,1735847443314,-554.07,0.00019726,3]
[347473420,1735847443324,-644.51,0.00019726,3]
[347473421,1735847443333,-1606.56,0.00019726,3]
[347473422,1735847443343,-500.0,0.00019726,3]
[347473423,1735847443353,-500.0,0.00019726,3]
[347473424,1735847443363,-500.0,0.00019726,3]
[347473425,1735847443373,-552.07,0.00019726,3]
[347473426,1735847443383,-500.0,0.00019726,3]
[347473427,1735847443392,-615.49,0.00019726,2]
[347473428,1735847443401,-495.69,0.00019726,3]
[347473429,1735847443411,-2194.67,0.00019726,3]
[347473430,1735847443420,-500.0,0.00019726,3]
[347473431,1735847443429,-969.34,0.00019726,3]
[347473432,1735847443439,-166.64,0.00019726,3]
[347473433,1735847443449,-500.0,0.00019726,3]
[347473434,1735847443458,-175.2,0.00019726,3]
[347473435,1735847443469,-601.1,0.00019726,3]
[347473436,1735847443478,-500.0,0.00019726,3]
[347473437,1735847443488,-500.0,0.00019726,3]
[347473438,1735847443497,-571.66,0.00019726,3]
[347473439,1735847443506,-500.0,0.00019726,3]
[347473440,1735847443515,-954.63,0.00019726,3]
[347473441,1735847443524,-500.0,0.00019726,3]
[347473442,1735847443533,-500.0,0.00019726,3]
[347473443,1735847443543,-1717.66,0.00019726,3]
[347473444,1735847443552,-500.0,0.00019726,3]
[347473445,1735847443561,-3695.24,0.00019726,3]
[347473446,1735847443574,-500.0,0.00019726,3]
[347473447,1735847443583,-1255.32,0.00019726,3]
[347473448,1735847443593,-500.0,0.00019726,3]
[347473449,1735847443603,-500.0,0.00019726,3]
[347473450,1735847443613,-705.3495124,0.00019726,2]
[347473451,1735847443622,-687.76075459,0.00019739,2]
[347473452,1735847443631,-153.0,0.00019761,2]
[347473453,1735847443642,-153.0,0.00019761,2]
[347473454,1735847443652,-153.0,0.00019761,2]
[347473455,1735847443661,-153.0,0.00019761,2]
[347473456,1735847443671,-153.0,0.00019761,2]
[347473457,1735847443680,-306.0,0.00019761,2]
[347473458,1735847443689,-708.108,0.0001978,2]
[347473459,1735847443699,-11665.95116445,0.00019781,2]
[347473461,1735847443708,-500.0,0.00019799,7]
[347473463,1735847443718,-11021.05716722,0.000199,2]
[347473464,1735847443727,-500.0,0.00019999,2]
[347473466,1735847443737,-373.08824713,0.00019999,2]
[347473467,1735847443746,-359.51163031,0.00019999,2]
[347473468,1735847443755,-500.0,0.00019999,2]
[347473469,1735847443765,-500.0,0.00019999,2]
[347473471,1735847443774,-500.0,0.00019999,2]
[347473473,1735847443783,-500.0,0.00019999,2]
[347473474,1735847443792,-616.13333607,0.00019999,2]
[347473475,1735847443801,-28393.93461895,0.0002,7]
[347473476,1735847443810,-50000.0,0.0002,2]
[347473477,1735847443820,-820.11,0.0002,3]
[347473478,1735847443829,-750.06,0.0002,3]
[347473479,1735847443838,-500.0,0.0002,3]
[347473480,1735847443847,-500.0,0.0002,3]
[347473481,1735847443857,-500.0,0.0002,3]
[347473482,1735847443867,-500.0,0.0002,3]
[347473483,1735847443876,-667.64,0.0002,3]
[347473484,1735847443885,-500.0,0.0002,3]
[347473485,1735847443895,-500.0,0.0002,3]
[347473486,1735847443904,-159.7,0.0002,3]
[347473487,1735847443913,-500.0,0.0002,3]
[347473488,1735847443923,-500.0,0.0002,3]
[347473489,1735847443933,-500.0,0.0002,3]
[347473490,1735847443942,-500.0,0.0002,3]
[347473491,1735847443951,-500.0,0.0002,3]
[347473492,1735847443960,-14569.12,0.0002,3]
[347473493,1735847443969,-635.40126605,0.0002,3]
[347473494,1735847443979,-500.0,0.0002,3]
[347473495,1735847443988,-500.0,0.0002,3]
[347473496,1735847443997,-228.51,0.0002,3]
[347473497,1735847444006,-3048.23,0.0002,3]
[347473498,1735847444015,-561.7,0.0002,3]
[347473499,1735847444025,-500.0,0.0002,3]
[347473500,1735847444034,-500.0,0.0002,3]
[347473501,1735847444043,-3343.71,0.0002,3]
[347473502,1735847444054,-554.07,0.0002,3]
[347473503,1735847444063,-644.51,0.0002,3]
[347473504,1735847444073,-1606.56,0.0002,3]
[347473505,1735847444082,-500.0,0.0002,3]
[347473506,1735847444091,-500.0,0.0002,3]
[347473507,1735847444101,-500.0,0.0002,3]
[347473508,1735847444110,-552.07,0.0002,3]
[347473509,1735847444119,-615.49,0.0002,2]
[347473510,1735847444128,-2194.67,0.0002,3]
[347473511,1735847444137,-500.0,0.0002,3]
[347473512,1735847444146,-969.34,0.0002,3]
[347473513,1735847444156,-500.0,0.0002,3]
[347473514,1735847444164,-601.1,0.0002,3]
[347473515,1735847444174,-500.0,0.0002,3]
[347473516,1735847444183,-500.0,0.0002,3]
[347473517,1735847444192,-571.66,0.0002,3]
[347473518,1735847444201,-500.0,0.0002,3]
[347473519,1735847444211,-954.63,0.0002,3]
[347473520,1735847444220,-500.0,0.0002,3]
[347473521,1735847444229,-500.0,0.0002,3]
[347473522,1735847444239,-1717.66,0.0002,3]
[347473523,1735847444247,-3695.24,0.0002,3]
[347473524,1735847444256,-3695.24,0.0002,3]
[347473525,1735847444266,-1255.32,0.0002,3]
[347473526,1735847444275,-508.75,0.0002,3]
[347473527,1735847444284,-500.0,0.0002,3]
[347473528,1735847444293,-11021.05716705,0.00020058,2]
[347473529,1735847444303,-687.76075459,0.0002007,2]
[347473530,1735847444312,-153.6137553,0.0002011,2]
[347473531,1735847444321,-214.4778337,0.0002011,2]
[347473532,1735847444330,-153.0,0.0002011,2]
[347473533,1735847444340,-153.0,0.0002011,2]
[347473534,1735847444349,-153.0,0.0002011,2]
[347473535,1735847444358,-153.0,0.0002011,2]
[347473536,1735847444367,-153.0,0.0002011,2]
[347473537,1735847444378,-153.6137553,0.00020137,2]
[347473538,1735847444387,-214.4778337,0.00020137,2]
[347473539,1735847444398,-11021.05716705,0.00020216,2]
[347473540,1735847444409,-247.144207,0.00020216,2]
[347473541,1735847444418,-247.144207,0.00020216,2]
[347473542,1735847444427,-151.0,0.00020216,2]
[347473543,1735847444437,-291.098984,0.00020216,2]
[347473544,1735847444446,-156.3,0.00020262,5]
[347473545,1735847444457,-294.693699,0.00020273,2]
[347473546,1735847444467,-294.693699,0.00020273,2]
[347473547,1735847444479,-247.144207,0.00020273,2]
[347473548,1735847444489,-247.144207,0.00020273,2]
[347473549,1735847444499,-151.0,0.00020273,2]
[347473550,1735847444508,-1441.47313,0.00020273,2]
[347473551,1735847444517,-151.0,0.00020273,2]
[347473552,1735847444527,-1441.47313,0.00020273,2]
[347473553,1735847444536,-820.11,0.00020273,3]
[347473554,1735847444546,-750.06,0.00020273,3]
[347473555,1735847444555,-500.0,0.00020273,3]
[347473556,1735847444564,-500.0,0.00020273,3]
[347473557,1735847444577,-500.0,0.00020273,3]
[347473558,1735847444586,-500.0,0.00020273,3]
[347473559,1735847444596,-667.64,0.00020273,3]
[347473560,1735847444607,-500.0,0.00020273,3]
[347473561,1735847444618,-500.0,0.00020273,3]
[347473562,1735847444629,-500.0,0.00020273,3]
[347473563,1735847444640,-499.33397185,0.00020273,3]
[347473564,1735847444652,-500.0,0.00020273,3]
[347473565,1735847444661,-500.0,0.00020273,3]
[347473566,1735847444670,-500.0,0.00020273,3]
[347473567,1735847444679,-14569.12,0.00020273,3]
[347473568,1735847444689,-500.0,0.00020273,3]
[347473569,1735847444699,-500.0,0.00020273,3]
[347473570,1735847444708,-3048.23,0.00020273,3]
[347473571,1735847444718,-561.7,0.00020273,3]
[347473572,1735847444727,-500.0,0.00020273,3]
[347473573,1735847444736,-500.0,0.00020273,3]
[347473574,1735847444746,-3343.71,0.00020273,3]
[347473575,1735847444756,-554.07,0.00020273,3]
[347473576,1735847444765,-644.51,0.00020273,3]
[347473577,1735847444774,-1606.56,0.00020273,3]
[347473578,1735847444783,-500.0,0.00020273,3]
[347473579,1735847444792,-500.0,0.00020273,3]
[347473580,1735847444803,-500.0,0.00020273,3]
[347473581,1735847444813,-552.07,0.00020273,3]
[347473582,1735847444823,-615.49,0.00020273,2]
[347473583,1735847444832,-2194.67,0.00020273,3]
[347473584,1735847444841,-499.0,0.00020273,2]
[347473585,1735847444851,-500.0,0.00020273,3]
[347473586,1735847444861,-969.34,0.00020273,3]
[347473587,1735847444871,-500.0,0.00020273,3]
[347473588,1735847444880,-601.1,0.00020273,3]
[347473589,1735847444891,-500.0,0.00020273,3]
[347473590,1735847444902,-500.0,0.00020273,3]
[347473591,1735847444911,-571.66,0.00020273,3]
[347473592,1735847444920,-381.56431933,0.00020273,3]
[347473593,1735847444930,-954.63,0.00020273,3]
[347473594,1735847444940,-339.34,0.00020273,3]
[347473595,1735847444949,-500.0,0.00020273,3]
[347473596,1735847444958,-1717.66,0.00020273,3]
[347473597,1735847444968,-3695.24,0.00020273,3]
[347473598,1735847444977,-3695.24,0.00020273,3]
[347473599,1735847444986,-1255.32,0.00020273,3]
[347473600,1735847444995,-500.0,0.00020273,3]
[347473601,1735847445004,-4927.17,0.000203,2]
[347473602,1735847445013,-11021.05716705,0.00020374,2]
[347473603,1735847445023,-151.0,0.00020374,2]
[347473604,1735847445032,-151.0,0.00020374,2]
[347473605,1735847445041,-687.76075459,0.000204,2]
[347473606,1735847445052,-400.0,0.00020447,2]
[347473607,1735847445061,-3000.0,0.00020447,2]
[347473608,1735847445070,-500.0,0.00020473,2]
[347473609,1735847445079,-500.0,0.00020473,2]
[347473610,1735847445088,-14373.90095465,0.000205,2]
[347473611,1735847445097,-144797.88401166,0.000205,2]
[347473612,1735847445110,-370.073377,0.000205,2]
[347473613,1735847445119,-370.073377,0.000205,2]
[347473614,1735847445128,-153.43,0.000205,2]
[347473615,1735847445138,-29395.18703836,0.000205,2]
[347473616,1735847445420,-1090.96701536,0.00019178,2]
[347473634,1735847703716,151.0,0.0001,2]
[347473637,1735848035037,400.0,0.00013973,2]
[347473674,1735848632279,-196.2664726,0.00016626,2]
[347473676,1735848632288,-183.72660861,0.00016794,2]
[347473682,1735848632333,-12.53986399,0.00016794,2]
[347473684,1735848632342,-227.195531,0.00017542,2]
[347473686,1735848632351,-500.0,0.00017981,3]
[347473688,1735848632360,-300.0,0.00018018,2]
[347473690,1735848632370,-24900.0,0.00018019,2]
[347473692,1735848632379,-500.0,0.00018803,5]
[347473694,1735848632388,-285.58095414,0.000189,2]
[347473697,1735848632398,-1329.20732129,0.000189,2]
[347473700,1735848632407,-2985.66955716,0.00018959,2]
[347473746,1735848638126,-2179.08800539,0.00018959,2]
[347473747,1735848638136,-302.9394212,0.00019,2]
[347473748,1735848638146,-500.0,0.00019173,2]
[347473749,1735848638155,-500.0,0.00019173,2]
[347473750,1735848638164,-352.878,0.00019177,2]
[347473751,1735848638174,-500.61478017,0.00019178,2]
[347473753,1735848638183,-500.0,0.00019178,2]
[347473754,1735848638192,-500.0,0.00019178,2]
[347473755,1735848638202,-500.0,0.00019178,2]
[347473756,1735848638211,-500.0,0.00019178,2]
[347473757,1735848638220,-500.0,0.00019178,2]
[347473758,1735848638229,-500.0,0.00019178,2]
[347473759,1735848638239,-500.0,0.00019178,2]
[347473760,1735848638248,-500.0,0.00019178,2]
[347473761,1735848638258,-331.28517968,0.00019178,2]
[347473762,1735848638267,-500.0,0.00019178,2]
[347473763,1735848638276,-503.32604398,0.00019178,2]
[347473764,1735848638285,-500.0,0.00019178,2]
[347473765,1735848638294,-502.68230553,0.00019178,2]
[347473766,1735848638303,-503.91833629,0.00019178,2]
[347473767,1735848638313,-500.0,0.00019178,2]
[347473768,1735848638322,-500.0,0.00019178,2]
[347473769,1735848638331,-501.47716561,0.00019178,2]
[347473770,1735848638340,-500.0,0.00019178,2]
[347473771,1735848638349,-500.0,0.00019178,2]
[347473772,1735848638360,-501.79554441,0.00019178,2]
[347473773,1735848638371,-500.0,0.00019178,2]
[347473774,1735848638380,-500.0,0.00019178,2]
[347473775,1735848638390,-500.0,0.00019178,2]
[347473776,1735848638400,-500.0,0.00019178,2]
[347473777,1735848638409,-500.0,0.00019178,2]
[347473778,1735848638421,-500.0,0.00019178,2]
[347473779,1735848638430,-500.0,0.00019178,2]
[347473780,1735848638439,-500.0,0.00019178,2]
[347473781,1735848638448,-500.0,0.00019178,2]
[347473782,1735848638458,-500.0,0.00019178,2]
[347473783,1735848638469,-500.0,0.00019178,2]
[347473784,1735848638479,-500.0,0.00019178,2]
[347473785,1735848638488,-500.0,0.00019178,2]
[347473786,1735848638500,-500.0,0.00019178,2]
[347473787,1735848638509,-500.0,0.00019178,2]
[347473788,1735848638518,-500.0,0.00019178,2]
[347473789,1735848638528,-500.0,0.00019178,2]
[347473790,1735848638537,-500.0,0.00019178,2]
[347473791,1735848638548,-500.0,0.00019178,2]
[347473792,1735848638558,-500.0,0.00019178,2]
[347473793,1735848638567,-500.0,0.00019178,2]
[347473794,1735848638578,-554.4,0.00019178,2]
[347473795,1735848638588,-644.84,0.00019178,2]
[347473796,1735848638599,-500.0,0.00019178,2]
[347473797,1735848638610,-422.85933435,0.00019178,2]
[347473798,1735848638620,-500.0,0.00019178,2]
[347473799,1735848638630,-500.0,0.00019178,2]
[347473800,1735848638641,-500.0,0.00019178,2]
[347473801,1735848638651,-463.40799175,0.00019178,2]
[347473802,1735848638661,-2861.42,0.00019178,2]
[347473803,1735848638672,-500.0,0.00019178,2]
[347473804,1735848638682,-500.0,0.00019178,2]
[347473805,1735848638691,-500.0,0.00019178,2]
[347473806,1735848638701,-500.0,0.00019178,2]
[347473807,1735848638711,-500.0,0.00019178,2]
[347473808,1735848638721,-500.0,0.00019178,2]
[347473809,1735848638730,-500.0,0.00019178,2]
[347473810,1735848638739,-2058.43,0.00019178,2]
[347473811,1735848638750,-500.0,0.00019178,2]
[347473812,1735848638759,-419.43,0.00019178,2]
[347473813,1735848638769,-500.0,0.00019178,2]
[347473814,1735848638779,-567.45536889,0.00019178,2]
[347473815,1735848638788,-546.44239984,0.00019178,2]
[347473816,1735848638797,-13745.63,0.00019178,2]
[347473817,1735848638807,-500.0,0.00019178,2]
[347473818,1735848638816,-500.0,0.00019178,2]
[347473819,1735848638829,-500.0,0.00019178,2]
[347473820,1735848638838,-500.0,0.00019178,2]
[347473821,1735848638848,-500.0,0.00019178,2]
[347473822,1735848638857,-787.69,0.00019178,2]
[347473823,1735848638866,-500.0,0.00019178,2]
[347473824,1735848638875,-500.0,0.00019178,2]
[347473825,1735848638885,-500.0,0.00019178,2]
[347473826,1735848638894,-500.0,0.00019178,2]
[347473827,1735848638903,-528.73,0.00019178,2]
[347473828,1735848638912,-500.0,0.00019178,2]
[347473829,1735848638921,-611.64,0.00019178,2]
[347473830,1735848638930,-500.0,0.00019178,2]
[347473831,1735848638941,-514.89,0.00019178,2]
[347473832,1735848638952,-500.0,0.00019178,2]
[347473833,1735848638962,-500.0,0.00019178,2]
[347473834,1735848638971,-3136.7,0.00019178,2]
[347473835,1735848638981,-500.0,0.00019178,2]
[347473836,1735848638992,-500.0,0.00019178,2]
[347473837,1735848639001,-500.0,0.00019178,2]
[347473838,1735848639010,-3618.23,0.00019178,2]
[347473839,1735848639020,-1522.76,0.00019178,2]
[347473840,1735848639029,-1321.65,0.00019178,2]
[347473841,1735848639039,-526.9,0.00019178,2]
[347473842,1735848639048,-500.0,0.00019178,2]
[347473843,1735848639057,-500.0,0.00019178,2]
[347473844,1735848639066,-339.28231209,0.00019178,2]
[347473845,1735848639075,-500.0,0.00019178,2]
[347473846,1735848639084,-500.0,0.00019178,2]
[347473847,1735848639093,-500.0,0.00019178,2]
[347473848,1735848639102,-500.0,0.00019178,2]
[347473849,1735848639112,-500.0,0.00019178,2]
[347473850,1735848639122,-500.0,0.00019178,2]
[347473851,1735848639131,-500.0,0.00019178,2]
[347473852,1735848639140,-610.67,0.00019178,2]
[347473853,1735848639149,-500.0,0.00019178,2]
[347473854,1735848639158,-500.0,0.00019178,2]
[347473855,1735848639168,-500.0,0.00019178,2]
[347473856,1735848639178,-500.0,0.00019178,2]
[347473857,1735848639188,-500.0,0.00019178,2]
[347473858,1735848639198,-500.0,0.00019178,2]
[347473859,1735848639207,-500.0,0.00019178,2]
[347473860,1735848639217,-500.0,0.00019178,2]
[347473861,1735848639226,-500.0,0.00019178,2]
[347473862,1735848639235,-708.39,0.00019178,2]
[347473863,1735848639244,-500.0,0.00019178,2]
[347473864,1735848639253,-500.0,0.00019178,2]
[347473865,1735848639262,-500.0,0.00019178,2]
[347473866,1735848639271,-500.0,0.00019178,2]
[347473867,1735848639280,-951.75,0.00019178,2]
[347473868,1735848639290,-500.0,0.00019178,2]
[347473869,1735848639298,-504.84617504,0.00019178,2]
[347473870,1735848639307,-596.88,0.00019178,2]
[347473871,1735848639316,-500.0,0.00019178,2]
[347473872,1735848639326,-500.0,0.00019178,2]
[347473873,1735848639336,-500.0,0.00019178,2]
[347473874,1735848639345,-500.0,0.00019178,2]
[347473875,1735848639354,-618.13,0.00019178,2]
[347473876,1735848639364,-901.13,0.00019178,2]
[347473877,1735848639373,-547.84,0.00019178,2]
[347473878,1735848639383,-500.0,0.00019178,2]
[347473879,1735848639392,-580.96358821,0.00019178,2]
[347473880,1735848639401,-500.0,0.00019178,2]
[347473881,1735848639410,-500.0,0.00019178,2]
[347473882,1735848639419,-500.0,0.00019178,2]
[347473883,1735848639428,-500.0,0.00019178,2]
[347473884,1735848639437,-240.07717217,0.00019178,2]
[347473885,1735848639568,-500.0,0.00019178,2]
[347473886,1735848639577,-500.0,0.00019178,2]
[347473887,1735848639587,-500.0,0.00019178,2]
[347473888,1735848639596,-500.0,0.00019178,2]
[347473889,1735848639605,-500.0,0.00019178,2]
[347473890,1735848639614,-500.0,0.00019178,2]
[347473891,1735848639623,-500.0,0.00019178,2]
[347473892,1735848639633,-500.0,0.00019178,2]
[347473893,1735848639642,-500.0,0.00019178,2]
[347473894,1735848639651,-189.91495306,0.00019178,2]
[347473895,1735848639660,-1646.09,0.00019178,2]
[347473897,1735848639678,-500.0,0.00019178,2]
[347473898,1735848639690,-500.0,0.00019178,2]
[347473901,1735848639700,-500.0,0.00019178,2]
[347473902,1735848639710,-500.0,0.00019178,2]
[347473903,1735848639719,-500.0,0.00019178,2]
[347473904,1735848639729,-500.0,0.00019178,2]
[347473905,1735848639739,-500.0,0.00019178,2]
[347473906,1735848639749,-500.0,0.00019178,2]
[347473907,1735848639758,-1203.01,0.00019178,2]
[347473908,1735848639768,-500.0,0.00019178,2]
[347473909,1735848639778,-500.0,0.00019178,2]
[347473910,1735848639787,-171.480574,0.00019178,2]
[347473911,1735848639797,-153.05,0.00019178,2]
[347473912,1735848639807,-453.50167471,0.0001919,2]
[347473913,1735848639817,-153.0,0.00019288,2]
[347473914,1735848639827,-153.0,0.00019288,2]
[347473915,1735848639837,-153.0,0.00019288,2]
[347473916,1735848639847,-214.4778337,0.00019315,2]
[347473918,1735848639857,-153.6137553,0.00019315,2]
[347473919,1735848639867,-153.6137553,0.00019315,2]
[347473920,1735848639877,-214.4778337,0.00019315,2]
[347473921,1735848639887,-153.6137553,0.00019315,2]
[347473922,1735848639898,-214.4778337,0.00019315,2]
[347473923,1735848639907,-214.4778337,0.00019315,2]
[347473925,1735848639917,-428.9556674,0.00019315,2]
[347473927,1735848639927,-620.12090907,0.00019352,2]
[347473929,1735848639938,-285.5809541,0.00019417,2]
[347473930,1735848639957,-500.0,0.00019451,2]
[347473931,1735848639967,-500.0,0.00019451,2]
[347473932,1735848639976,-500.0,0.00019451,2]
[347473934,1735848639988,-500.0,0.00019451,2]
[347473936,1735848639998,-372.96292972,0.00019451,2]
[347473937,1735848640007,-500.0,0.00019451,2]
[347473938,1735848640017,-500.0,0.00019451,2]
[347473940,1735848640027,-500.0,0.00019451,2]
[347473941,1735848640036,-563.47331362,0.00019451,2]
[347473942,1735848640046,-597.5643194,0.00019451,2]
[347473943,1735848640056,-233.06270215,0.00019451,2]
[347473944,1735848640066,-500.0,0.00019451,3]
[347473945,1735848640076,-500.0,0.00019451,3]
[347473947,1735848640085,-500.0,0.00019451,3]
[347473949,1735848640095,-500.0,0.00019451,3]
[347473950,1735848640105,-500.0,0.00019452,3]
[347473951,1735848640115,-500.0,0.00019452,3]
[347473952,1735848640125,-500.0,0.00019452,3]
[347473954,1735848640135,-500.0,0.00019452,3]
[347473956,1735848640145,-500.0,0.00019452,3]
[347473957,1735848640155,-500.0,0.00019452,3]
[347473958,1735848640165,-500.0,0.00019452,3]
[347473959,1735848640174,-644.84,0.00019452,3]
[347473960,1735848640184,-500.0,0.00019452,3]
[347473961,1735848640193,-175.2,0.00019452,3]
[347473962,1735848640202,-2861.42,0.00019452,3]
[347473963,1735848640211,-159.7,0.00019452,3]
[347473964,1735848640221,-500.0,0.00019452,3]
[347473965,1735848640230,-2058.43,0.00019452,3]
[347473966,1735848640240,-500.0,0.00019452,3]
[347473967,1735848640249,-500.0,0.00019452,3]
[347473968,1735848640258,-13745.63,0.00019452,3]
[347473969,1735848640268,-500.0,0.00019452,3]
[347473970,1735848640277,-500.0,0.00019452,3]
[347473971,1735848640287,-633.57463747,0.00019452,3]
[347473972,1735848640296,-500.0,0.00019452,3]
[347473973,1735848640306,-635.40126605,0.00019452,3]
[347473974,1735848640318,-787.69,0.00019452,3]
[347473975,1735848640328,-500.0,0.00019452,3]
[347473976,1735848640338,-528.73,0.00019452,3]
[347473977,1735848640347,-611.64,0.00019452,3]
[347473978,1735848640357,-500.0,0.00019452,3]
[347473979,1735848640366,-514.89,0.00019452,3]
[347473980,1735848640376,-500.0,0.00019452,3]
[347473981,1735848640385,-3136.7,0.00019452,3]
[347473982,1735848640395,-500.0,0.00019452,3]
[347473983,1735848640404,-3618.23,0.00019452,3]
[347473984,1735848640415,-1522.76,0.00019452,3]
[347473985,1735848640424,-526.9,0.00019452,3]
[347473986,1735848640434,-1321.65,0.00019452,3]
[347473987,1735848640443,-500.0,0.00019452,3]
[347473988,1735848640453,-550.37349741,0.00019452,3]
[347473989,1735848640463,-610.67,0.00019452,2]
[347473990,1735848640472,-500.0,0.00019452,3]
[347473991,1735848640482,-500.0,0.00019452,3]
[347473992,1735848640491,-500.0,0.00019452,3]
[347473993,1735848640501,-500.0,0.00019452,3]
[347473994,1735848640510,-500.0,0.00019452,3]
[347473995,1735848640519,-500.0,0.00019452,3]
[347473996,1735848640528,-500.0,0.00019452,3]
[347473997,1735848640538,-708.39,0.00019452,3]
[347473998,1735848640547,-500.0,0.00019452,3]
[347473999,1735848640556,-500.0,0.00019452,3]
[347474000,1735848640566,-951.75,0.00019452,3]
[347474001,1735848640575,-596.88,0.00019452,3]
[347474002,1735848640585,-901.13,0.00019452,3]
[347474003,1735848640594,-547.84,0.00019452,3]
[347474004,1735848640603,-500.0,0.00019452,3]
[347474005,1735848640612,-500.0,0.00019452,3]
[347474006,1735848640622,-500.0,0.00019452,3]
[347474007,1735848640633,-500.0,0.00019452,3]
[347474008,1735848640642,-500.0,0.00019452,3]
[347474009,1735848640651,-500.0,0.00019452,3]
[347474010,1735848640660,-1646.09,0.00019452,3]
[347474011,1735848640669,-500.0,0.00019452,3]
[347474012,1735848640679,-370.48692767,0.00019452,3]